Cogmind - Beta 16 @@@ ROGUE MODE // 2025.11.18 @ 13:00:48 Player: Scringis Result: Self-destructed Performance ------------- Evolutions (3) 1500 Regions Visited (5) 1000 Robots Destroyed (41) 205 Value Destroyed (1423) 1423 Prototype IDs (4) 80 Alien Tech Used (0) 0 Bonus (174) 174 TOTAL SCORE: 4382 Bonus ------- Follower Combat Kills 190 Friendly Fire -16 Cogmind --------- Core Integrity 584/700 Matter 97/300 Energy 240/240 System Corruption 1% Temperature Warning (345) Movement Walking (120) Location -7/Factory Parts ------- > --- POWER (2) -------- Nuclear Core > --- PROPULSION (4) --- Carbon-fiber Leg Carbon-fiber Leg > --- UTILITY (3) ------ Large Storage Unit Advanced Visual Processing Unit > --- WEAPON (4) ------- Minigun > --- INVENTORY (15) --- Cesium-ion Thruster Improved Heat Sink Large Storage Unit Subdweller Optics Advanced Targeting Computer Advanced Targeting Computer Assault Rifle Assault Rifle Datajack Mining Laser Flamer Peak State ------------ > --- POWER ------------ Nuclear Core Light Nuclear Core > --- PROPULSION ------- Carbon-fiber Leg Carbon-fiber Leg Carbon-fiber Leg > --- UTILITY ---------- Large Storage Unit Advanced Visual Processing Unit Hardened Medium Armor Plating > --- WEAPON ----------- Precision Beam Rifle Battle Rifle Minigun Gauss Rifle > --- INVENTORY -------- Cesium-ion Thruster Improved Heat Sink Large Storage Unit Subdweller Optics Advanced Targeting Computer Advanced Targeting Computer Assault Rifle Assault Rifle Datajack Mining Laser Flamer [Rating: 37] Favorites ----------- Power Light Nuclear Core Engine Ion Engine Power Core Light Nuclear Core Propulsion Light Treads Treads Light Treads Leg Carbon-fiber Leg Utility Large Storage Unit Device Splice Drone Bay Storage Large Storage Unit Processor Advanced Visual Processing Unit Protection Hardened Medium Armor Plating Weapon Assault Rifle Energy Gun EM Pulse Gun Ballistic Gun Assault Rifle Special Weapon Mining Laser Build | -11 -10 -10 -10 -8 -7 ------- Run | Yrd Mat Min Sub Mat Fac Slots Evolved 6 | . . . . 4 2 Power 1 | . . . . 1 . Propulsion 2 | . . . . 1 1 Utility 1 | . . . . . 1 Weapon 2 | . . . . 2 . Parts Attached 34 | 6 4 1 3 18 2 Power 6 | 1 1 . 1 3 . Engine 3 | 1 . . 1 1 . Core 3 | . 1 . . 2 . Reactor . | . . . . . . Propulsion 8 | 2 . . . 6 . Treads 2 | 2 . . . . . Leg 6 | . . . . 6 . Wheel . | . . . . . . Hover . | . . . . . . Flight . | . . . . . . Utility 5 | 1 1 1 . 1 1 Device 1 | . . 1 . . . Storage 2 | 1 1 . . . . Processor 1 | . . . . . 1 Hackware . | . . . . . . Protection 1 | . . . . 1 . Artifact . | . . . . . . Weapon 15 | 2 2 . 2 8 1 Energy Gun 3 | 1 . . . 2 . Energy Cannon . | . . . . . . Ballistic Gun 11 | 1 2 . 1 6 1 Ballistic Cannon . | . . . . . . Launcher . | . . . . . . Special Weapon 1 | . . . 1 . . Impact Weapon . | . . . . . . Slashing Weapon . | . . . . . . Piercing Weapon . | . . . . . . Special Melee Weapon . | . . . . . . Unidentified Prototypes 4 | . . 1 . 3 . Parts Lost 12 | . 1 . 1 6 4 Power 4 | . 1 . 1 1 1 Propulsion 3 | . . . . 2 1 Utility 2 | . . . . 1 1 Weapon 3 | . . . . 2 1 Highest Loss Streak 4 | . 1 . 1 2 4 To Critical Strikes . | . . . . . . Average Backups 9 | 1 6 8 11 11 10 Power . | . 1 1 . . . Propulsion . | . . . . . 1 Utility 3 | . 1 2 2 4 5 Weapon 4 | . 2 4 6 4 3 Tool/Special . | . . . . . . Unused Backups 12 | . 3 . . 1 8 Power 1 | . . . . 1 . Propulsion 1 | . . . . . 1 Utility 6 | . 1 . . . 5 Weapon 3 | . 2 . . . 1 Tool/Special 1 | . . . . . 1 Average Slot Usage (%) 89 | . 84 95 99 83 88 Engine 6 | . 3 . 11 7 . Core 6 | . 10 14 1 6 14 Treads 16 | . 28 28 28 3 . Leg 8 | . . . . 18 22 Device 5 | . . 9 14 1 . Storage 11 | . 14 14 14 9 7 Protection 2 | . . . . 5 7 Energy Gun 4 | . 12 . . 2 6 Ballistic Gun 23 | . 15 28 24 28 21 Peak Build Rating 37 | 6 9 16 16 30 37 Average Rating 17 | 4 7 14 14 22 34 On Entrance 12 | . 6 9 16 15 28 Avg Prop Armor Cover (%) . | . . . . . . Naked Turns . | . . . . . . Heaviest Build 51 | 12 29 37 39 49 51 Greatest Support 45 | 40 40 40 40 45 45 Greatest Overweight (x) 11 | . . . . 11 1 Average Overweight (x) . | . . . . . 1 Largest Inventory Capacity 15 | 8 15 15 15 15 15 Average Capacity 13 | 6 8 15 15 15 15 Most Carried 14 | 3 11 9 13 14 12 Average Carried 9 | 1 6 8 11 11 10 Final Capacity 15 | 8 15 15 15 15 15 Final Carried 12 | 2 8 8 12 12 11 Class Distribution -------------------- 58% | Mutant 22% | Tank 8% | Gunner 7% | Scavenger-Tank Dominant Class ---------------- Mutant | -10/Materials Mutant | -10/Mines Mutant | -10/Subcaves Tank | -8/Materials Tank | -7/Factory Resources | -11 -10 -10 -10 -8 -7 ----------- Run | Yrd Mat Min Sub Mat Fac Matter Collected 1161 | 210 149 30 75 697 . Remotely . | . . . . . . Salvage Created 1736 | . 594 . 149 779 214 Parts 93 | . 31 . 9 40 13 Haulers Intercepted 4 | . 2 . . 2 . Recyclers Shooed 2 | . 2 . . . . Parts Field Recycled . | . . . . . . Retrieved Matter . | . . . . . . Parts Self-Destructed . | . . . . . . Prevented . | . . . . . . Parts Restored . | . . . . . . Kills | -11 -10 -10 -10 -8 -7 ------- Run | Yrd Mat Min Sub Mat Fac Combat Hostiles Destroyed 35 | . 10 . 3 16 6 Guns 35 | . 10 . 3 16 6 Classes Destroyed 9 | . 3 . 1 5 . Builder 1 | . . . . 1 . Hauler 4 | . 2 . . 2 . Watcher 1 | . 1 . . . . Swarmer 7 | . . . . 3 4 Grunt 20 | . 10 . . 8 2 Duelist 1 | . . . . 1 . Sentry 2 | . . . . 2 . Hunter 2 | . . . . 2 . Subdweller 3 | . . . 3 . . Best Kill Streak 6 | . 3 . 2 3 6 Combat Bots Only 6 | . 3 . 2 3 6 Max Kills in Single Turn 2 | . 1 . 1 2 2 Gunslinging 1 | . . . . 1 1 Exploded . | . . . . . . Melee . | . . . . . . Uniques/NPCs Destroyed . | . . . . . . Combat | -11 -10 -10 -10 -8 -7 -------- Run | Yrd Mat Min Sub Mat Fac Hostile Shots Fired 223 | . 39 . 15 95 74 Missed 52 | . 11 . 5 26 10 Hits 171 | . 28 . 10 69 64 Projectile 171 | . 28 . 10 69 64 Critical Strikes 2 | . 1 . . 1 . Damage Taken 2346 | . 396 . 198 1004 748 Core 329 | . 34 . 16 163 116 Absorbed by Shields . | . . . . . . Core Remaining (%) 83 | 100 . . 80 70 . Volleys Fired 117 | . 34 . 13 49 21 Largest 4 | . 2 . 2 4 4 Hottest 139 | . 60 . 100 126 139 Shots Fired 312 | . 68 . 23 169 52 Gun 309 | . 68 . 20 169 52 Cannon . | . . . . . . Launcher . | . . . . . . Special 3 | . . . 3 . . Kinetic 261 | . 34 . 20 164 43 Thermal 17 | . . . 3 5 9 Explosive . | . . . . . . Electromagnetic 34 | . 34 . . . . Robot Hit Streak 13 | . 8 . 10 13 5 Robot Miss Streak 5 | . 4 . 2 5 4 Penetration Max 1 | . . . . 1 1 Secondary Targets 12 | . 1 . 1 7 3 Max Gunslinging Chain 2 | . 1 . 1 2 1 Shots Hit Robots 186 | . 45 . 16 93 32 Core Hits 80 | . 24 . 6 38 12 Critical Kills . | . . . . . . Critical Parts Destroyed 1 | . . . . 1 . Critical Strikes 2 | . . . . 1 1 Burn 1 | . . . . . 1 Destroy 1 | . . . . 1 . Melee Attacks . | . . . . . . Impact . | . . . . . . Slashing . | . . . . . . Piercing . | . . . . . . Sneak Attacks . | . . . . . . Combat Hostiles . | . . . . . . Follow-up Attacks . | . . . . . . Damage Inflicted 2923 | . 667 . 196 1481 579 Guns 2882 | . 636 . 196 1471 579 Cannons . | . . . . . . Explosions 22 | . 22 . . . . Melee . | . . . . . . Ramming 19 | . 9 . . 10 . Kinetic 2400 | . 295 . 196 1401 508 Thermal 163 | . 22 . . 70 71 Explosive . | . . . . . . Electromagnetic 341 | . 341 . . . . Impact . | . . . . . . Slashing . | . . . . . . Piercing . | . . . . . . Highest Corruption 1 | . . . . . 1 Average Corruption 1 | . . . . . 1 Corruption Purged . | . . . . . . Corruption Blocked . | . . . . . . Overload Shots . | . . . . . . Overflow Damage . | . . . . . . Projectiles . | . . . . . . Explosions . | . . . . . . Melee . | . . . . . . Knockbacks . | . . . . . . Impact . | . . . . . . Kinetic . | . . . . . . Secondary . | . . . . . . Self-Inflicted Damage 9 | . 9 . . . . Shots 1 | . 1 . . . . Rammed 3 | . 3 . . . . Targets Rammed 5 | . 3 . . 2 . Kicked 2 | . . . . 2 . Crushed . | . . . . . . Highest Temperature 722 | . 129 . . 268 722 Average Temperature 123 | . 31 . . 73 423 Received Heat Transfer 900 | . 237 . . 477 186 Effects 20 | . . . . . 20 Shutdowns 5 | . . . . . 5 Energy Bleed 1 | . . . . . 1 Interference 5 | . . . . . 5 Matter Decay 1 | . . . . . 1 Short Circuit 1 | . . . . . 1 Damage (minor) 3 | . . . . . 3 Damage (major) 4 | . . . . . 4 Siege Activations . | . . . . . . Martial Activations . | . . . . . . Shielding Activations . | . . . . . . Robots Disrupted . | . . . . . . Combat Hostiles . | . . . . . . Robots Corrupted . | . . . . . . Combat Hostiles . | . . . . . . Parts Fried 1 | . 1 . . . . Impact Corruptions . | . . . . . . Robots Melted . | . . . . . . Combat Hostiles . | . . . . . . Parts Melted 1 | . . . . 1 . Heat Transferred 420 | . 50 . . 148 222 Parts Sabotaged . | . . . . . . Parts Stolen . | . . . . . . Parts Stripped . | . . . . . . Power Chain Reactions 1 | . 1 . . . . Alert | -11 -10 -10 -10 -8 -7 ------- Run | Yrd Mat Min Sub Mat Fac Maximum Alert Level 1 | . . . . 1 . Low Security (%) 66 | 100 100 100 . 32 100 Level 1 33 | . . . . 67 . Level 2 . | . . . . . . Level 3 . | . . . . . . Level 4 . | . . . . . . Level 5 . | . . . . . . High Security . | . . . . . . Max Security . | . . . . . . Peak Influence 314 | . 120 . . 314 100 Initial 100 | . . . . . 100 Average 119 | . 43 . . 198 51 Influence Increases 1229 | . 329 . . 760 140 Destroy 0b10 Robot/C 800 | . 200 . . 480 120 Destroy 0b10 Robot/NC 35 | . 15 . . 20 . Destroy Leader 192 | . 56 . . 116 20 Allied During Kill 28 | . . . . 28 . Successful Hack 63 | . 23 . . 40 . Disable Machine 60 | . 15 . . 45 . Destroy Structure 6 | . 5 . . 1 . Lose Combat Pursuer 45 | . 15 . . 30 . Influence Decreases 1159 | . 329 . . 538 292 Entered New Map 122 | . . . . . 122 Time Decay 887 | . 319 . . 438 130 Lost Part 110 | . 10 . . 60 40 Lost Ally 40 | . . . . 40 . Squads Dispatched 15 | . 2 . . 11 2 Investigation 5 | . 1 . . 3 1 Extermination . | . . . . . . Reinforcement 2 | . 1 . . 1 . Assault . | . . . . . . Garrison 8 | . . . . 7 1 Intercept . | . . . . . . Searches Triggered . | . . . . . . Construction Impeded . | . . . . . . Haulers Reinforced . | . . . . . . Active Scanning Responses . | . . . . . . Cargo Convoy Interrupts . | . . . . . . Stealth | -11 -10 -10 -10 -8 -7 --------- Run | Yrd Mat Min Sub Mat Fac Distress Signals 6 | . 2 . . 3 1 Communications Jammed . | . . . . . . Distress Signals . | . . . . . . Times Spotted 75 | . 18 . 4 40 13 Peak Tracking Total 8 | . 3 . 2 7 8 Tactical Retreats 3 | . 1 . . 2 . Traps | -11 -10 -10 -10 -8 -7 ------- Run | Yrd Mat Min Sub Mat Fac Traps Triggered . | . . . . . . Indirectly . | . . . . . . Trap Hack Attempts . | . . . . . . Triggered . | . . . . . . Disarmed . | . . . . . . Reprogrammed . | . . . . . . Reused . | . . . . . . Traps Extracted . | . . . . . . Installed . | . . . . . . Triggered . | . . . . . . Machines | -11 -10 -10 -10 -8 -7 ---------- Run | Yrd Mat Min Sub Mat Fac Machines Disabled 4 | . 1 . . 3 . Max in Single Turn 1 | . 1 . . 1 . Machines Repaired . | . . . . . . Machines Dismantled . | . . . . . . Machines Sabotaged . | . . . . . . Overloaded Fab Kills . | . . . . . . Hacking | -11 -10 -10 -10 -8 -7 --------- Run | Yrd Mat Min Sub Mat Fac Machines Accessed 17 | . 6 1 . 9 1 Terminals 14 | . 6 . . 7 1 Fabricators . | . . . . . . Repair Stations . | . . . . . . Recycling Units 1 | . . . . 1 . Scanalyzers . | . . . . . . Garrison Access 1 | . . . . 1 . Total Hacks 47 | . 14 1 . 30 2 Successful 22 | . 8 1 . 13 . Failed 25 | . 6 . . 17 2 Catastrophic 5 | . . . . 4 1 Database Lockouts . | . . . . . . Manual 44 | . 12 . . 30 2 Terminals 41 | . 14 . . 25 2 Fabricators . | . . . . . . Repair Stations . | . . . . . . Recycling Units 2 | . . . . 2 . Scanalyzers . | . . . . . . Garrison Access 3 | . . . . 3 . Terminal Hacks 8 | . 3 1 . 4 . Robot Analysis 2 | . 2 . . . . Open Door 1 | . . 1 . . . Level Access Points 1 | . . . . 1 . Branch Access Points 1 | . . . . 1 . Terminal Index 2 | . 1 . . 1 . Registered Components 1 | . . . . 1 . Fabricator Hacks . | . . . . . . Repair Station Hacks . | . . . . . . Recycling Unit Hacks . | . . . . . . Scanalyzer . | . . . . . . Garrison Access Hacks . | . . . . . . Unauthorized Hacks 14 | . 5 . . 9 . Terminals 11 | . 5 . . 6 . Botnet 11 | . 5 . . 6 . Fabricators . | . . . . . . Repair Stations . | . . . . . . Recycling Units 1 | . . . . 1 . Mask 1 | . . . . 1 . Scanalyzers . | . . . . . . Garrison Access 2 | . . . . 2 . Reprogram 1 | . . . . 1 . Watchers 1 | . . . . 1 . Data Cores Recovered . | . . . . . . Used . | . . . . . . Hacking Detections 12 | . 5 . . 6 1 Full Trace Events 4 | . 1 . . 2 1 Feedback Events 1 | . . . . . 1 Corruption 1 | . . . . . 1 Feedback Blocked . | . . . . . . Robot Schematics Acquired . | . . . . . . Robots Built . | . . . . . . Authchips . | . . . . . . Time . | . . . . . . Total Robot Build Rating . | . . . . . . Part Schematics Acquired . | . . . . . . Parts Built . | . . . . . . Authchips . | . . . . . . Time . | . . . . . . Total Part Build Rating . | . . . . . . Part Studies Acquired . | . . . . . . Parts Repaired . | . . . . . . Time . | . . . . . . Parts Recycled . | . . . . . . Recycled Matter . | . . . . . . Retrieved Matter . | . . . . . . Retrieved Components . | . . . . . . Parts Scanalyzed . | . . . . . . Part Schematics Acquired . | . . . . . . Parts Damaged . | . . . . . . Bothacking | -11 -10 -10 -10 -8 -7 ------------ Run | Yrd Mat Min Sub Mat Fac Used RIF Installer . | . . . . . . Robots Hacked . | . . . . . . Non-combat . | . . . . . . Combat . | . . . . . . Robot Hacks Applied . | . . . . . . Relay Couplers Released . | . . . . . . Fabnet Peak Effective % . | . . . . . . Robots Rewired . | . . . . . . Allies Hacked . | . . . . . . Hacks Repelled . | . . . . . . Allies | -11 -10 -10 -10 -8 -7 -------- Run | Yrd Mat Min Sub Mat Fac Total Allies 7 | . . . . 7 . Largest Group 2 | . . . . 2 . Highest-Rated Group 32 | . . . . 32 . Highest-Rated Ally 29 | . . . . 29 . Total Orders . | . . . . . . Ally Attacks 94 | . . . 14 80 . Total Damage 732 | . . . 56 676 . Kills 9 | . . . . 9 . Allies Corrupted . | . . . . . . Allies Melted . | . . . . . . Intel | -11 -10 -10 -10 -8 -7 ------- Run | Yrd Mat Min Sub Mat Fac Active Infowar (turns) 243 | . . . . . 243 Optics 243 | . . . . . 243 Robot Analysis Total 2 | . 2 . . . . Derelict Logs Recovered 2 | . . 1 1 . . Drone Launches 39 | . . 6 12 21 . Drone Recoveries 39 | . . . 12 27 . Exploration | -11 -10 -10 -10 -8 -7 ------------- Run | Yrd Mat Min Sub Mat Fac Turns Passed 3718 | 69 886 74 1066 1333 290 Spaces Moved 1828 | 38 467 46 579 586 112 Core 7 | 4 . . . 3 . Treads 1218 | 34 467 46 579 92 . Legs 603 | . . . . 491 112 Wheels . | . . . . . . Hover . | . . . . . . Flight . | . . . . . . Fastest Speed 50 | 50 160 160 160 120 190 Average Speed 169 | 148 160 160 160 184 190 Slowest Speed 600 | 160 160 160 160 600 190 Overloaded Moves . | . . . . . . Propulsion Burnouts . | . . . . . . Robots Hopped . | . . . . . . Potential Cave-ins . | . . . . . . Cave-ins Triggered . | . . . . . . Exploration Rate (%) 32 | 3 86 17 25 59 6 Regions Visited 5 Branch Regions 2 Pre-discovered Areas . | . . . . . . Known Exits Taken 1 | . . . . 1 . Unknown Exits Taken 4 | 1 1 1 1 . . Scrap Searched 1 | . . 1 . . . Spaces Dug . | . . . . . . Terrain Destroyed 4 | . 4 . . . . Melee . | . . . . . . Projectile . | . . . . . . AOE 4 | . 4 . . . . Terrain Rammed . | . . . . . . Walls Destroyed . | . . . . . . Machines Disabled . | . . . . . . Actions | -11 -10 -10 -10 -8 -7 --------- Run | Yrd Mat Min Sub Mat Fac Total 2221 | 51 540 47 690 738 155 Wait 166 | . 12 . 90 48 16 Move 1823 | 37 466 45 578 585 112 Hop . | . . . . . . Pick Up 48 | 8 14 1 5 19 1 Fast Attach . | . . . . . . Attach 25 | 6 2 1 2 12 2 Detach 1 | . . . 1 . . Swap 12 | . 2 . 1 8 1 Drop 19 | . 7 . . 10 2 Fire 117 | . 34 . 13 49 21 Melee . | . . . . . . Ram . | . . . . . . Kick 2 | . . . . 2 . Crush 3 | . 3 . . . . Escape Stasis . | . . . . . . Rewire 5 | . . . . 5 . Trap . | . . . . . . Miscellaneous . | . . . . . . Route ------- -11/Scrapyard -10/Materials (discovered 4 exits: [*Mat x2] / *Min x2) -10/Mines -10/Subcaves -8/Materials (discovered 4 exits: *Fac x3 / *Sto) -7/Factory History --------- Turn | Location | Event 5 | -11/Scrapyard | Discovered new exit (range 15) 70 | -11/Scrapyard | Entered Materials 318 | -10/Materials | Build established: Mutant 358 | -10/Materials | Discovered new exit (range 15) 413 | -10/Materials | Discovered new exit (range 16) 603 | -10/Materials | Discovered new exit (range 16) 901 | -10/Materials | Discovered new exit (range 16) 956 | -10/Materials | Entered Mines 967 | -10/Mines | Found the Drone Emporium 976 | -10/Mines | Found Prototype Device 977 | -10/Mines | Identified Splice Drone Bay 1011 | -10/Mines | Discovered new exit (range 14) 1030 | -10/Mines | Entered Subcaves 1030 | -10/Subcaves | Accompanied by 6 allies 1050 | -10/Subcaves | Learned Materials trap positions 2074 | -10/Subcaves | Discovered new exit (range 13) 2092 | -10/Subcaves | Shifting Twisted Machinery released Spk. Treads 2092 | -10/Subcaves | Shifting Twisted Machinery released Sub. Laser 2096 | -10/Subcaves | Entered Materials 2096 | -8/Materials | Accompanied by 6 allies 2096 | -8/Materials | Evolved 4 slots: Power x1, Propulsion x1, Weapon x2 2097 | -8/Materials | Identified exit to Storage 2098 | -8/Materials | Loaded intel: 21 trap records 2176 | -8/Materials | Garrison activated, responded to threat 2398 | -8/Materials | Garrison activated, responded to threat 2453 | -8/Materials | Build established: Gunner 2707 | -8/Materials | Garrison activated, responded to threat 3054 | -8/Materials | Identified exit to Factory 3143 | -8/Materials | Build established: Tank 3429 | -8/Materials | Entered Factory 3429 | -7/Factory | Evolved 2 slots: Propulsion x1, Utility x1 3717 | -7/Factory | Garrison activated, responded to threat 3719 | -7/Factory | Self-destructed Last Messages --------------- 03688_ Overheating: Carbon-fiber Leg damaged (-41). 03689_ Power failure, Nuclear Core shutdown. 03692_ Overheating: Broken Gauss Rifle damaged (-24). 03692_ Overheating: Carbon-fiber Leg damaged (-18). 03693_ Overheating: Energy bleed (-50). 03693_ Dropped Prc. Beam Rifle. 03694_ Dropped Broken Gauss Rifle. 03694_ G-47 Trooper destroyed. 03698_ Carbon-fiber Leg destroyed. 03702_ Power failure, Nuclear Core shutdown. 03705_ G-47 Trooper destroyed. 03708_ Battle Rifle destroyed. 03709_ Overheating: Nuclear Core damaged (-16). 03717_ Y-54 Guardian calls for garrison reinforcements. 03717_ ALERT: Activating Garrison Access F004. 03718_ Hrd. Medium Armor Plating destroyed. Map ----- +----------------------------------------------------+ | ?????????????????????????????????????????????????? | | ?????????????????????????????????????????????????? | | ?????????????????????????????????????????????????? | | ??????????????????????? ??????????????????????? | | ???????????? ?????????? ???????????????????? | | ??????????# ????????# #??????????????????? | | ??????????# ????????# #??????????????????? | | ??????????# #???????# #??????????????????? | | ??????????# #???????# #??????????????????? | | ??????????# #???????# #??????????????????? | | ??????????# #???????# #??????????????????? | | ??????????# #???????# #??????????????????? | | ??????????# #???????# +??????????????????? | | ??????????# #???????# #??????????????????? | | ??????????# #???????# #??????????????????? | | ??????????# #???????# #??????????????????? | | ??????????# #??????## ##?????????????????? | | ####+###### #??????#w #?????????????????? | | # !! ####+### #?????????????????? | | # !^! g #?????????????????? | | # ! gT"g #?????????????????? | | # "g #?????????????????? | | # """ """ #?????????????????? | | # """ """ [ ! #?????????????????? | | # """ """ ####### [[[* #?????????????????? | | # #?????# [@%*[ #?????????????????? | | # """ """ #?????#####Y#####?????????????????? | | # """ """ #???##??? %g=????????????????????? | | # """ """ #?? #? ! ??????????????????? | | # #? # """"""""" ????????????????? | | ## """ """ # # #???????????????? | | """ """ # # //! #??????????????? | | """ """ + # //! ! ##??????????????? | | # # /[! #???????????????? | | #?? # #???????????????? | | ####+###########????# """"""""" #???????????????? | | # #??????????# #???????????????? | | # = """"#??????????# "" "" #???????????????? | | # """"#??????????# ""G"" #???????????????? | | # """"#??????????#######??#???????????????????? | | # """"#???????????????????????????????????????? | | # """"#???????????????????????????????????????? | | # """"#???????????????????????????????????????? | | # """"#???????????????????????????????????????? | | # #???????????????????????????????????????? | | ?#########???????????????????????????????????????? | | | | | | | | | +----------------------------------------------------+ Best States ------------- Heat Dissipation 34 Energy Generation 24 Energy Capacity 300 Matter Stores 300 Matter Capacity 300 Sight Range 20 Terrain Scan Density 10 Armor Coverage 225 Evasion (%) 55 Recoil Reduction 2 Item Schematics ----------------- None Robot Schematics ------------------ None Fabricated ------------ Nothing Repaired ---------- Nothing Studied --------- None Alien Tech Used ----------------- None Achievements -------------- Factory Defaults Release The Drones! Satisfying Challenges ------------ None Game ------ Seed MachineTacticalBooster Manual? 0 Play Time 00:22:05 Cumulative 50.9 hours Start 2025.11.18 @ 11:51:16 End 2025.11.18 @ 13:00:48 Sessions 1 Manual Loads 0 Difficulty Rogue Special Mode None Game No. 141 Rogue 141 Adventurer 0 Explorer 0 Win Type - Total 0 Types 0/0/0/0/0/0/0/0/0/0 Lore% 31 Gallery% 32 Achievement% 27 Wizard Run 0 Options --------- Layout 1 ASCII 0 Keyboard 0 Movement Numpad Keybinds 0 Fullscreen 2 Font 24/Smallcaps Map View 50x35 Zoom Use 0% Tactical HUD 1 Map Filters NONE Filters NONE Steam 1 RUN: e3809a59-8e45-445b-afde-953d618d7a9d